bitfinex/quotes_SOLUSD_20250508
["timestamp","ask_amount","ask_price","bid_price","bid_amount"]
[1746701007731,11.28404428,154.74,154.71,11.03176794]
[1746701008451,11.28404428,154.74,154.73,11.03176794]
[1746701009054,4.82159114,154.74,154.73,11.03176794]
[1746701009255,4.82159114,154.74,154.73,29.6814168]
[1746701012665,4.82159114,154.74,154.73,112.4814168]
[1746701014964,11.28404428,154.74,154.73,112.4814168]
[1746701015163,4.82159114,154.74,154.73,112.4814168]
[1746701017561,4.82159114,154.74,154.73,168.9442876]
[1746701017758,4.82159114,154.74,154.73,207.6842876]
[1746701018060,6.46008581,154.8,154.77,18.64964886]
[1746701018360,6.46008581,154.8,154.79,11.03176794]
[1746701019064,6.4591138,154.82,154.79,11.03176794]
[1746701019639,22.60689832,154.82,154.78,11.03176794]
[1746701020442,33.63866626,154.82,154.78,11.03176794]
[1746701023444,22.60689832,154.82,154.78,11.03176794]
[1746701024956,33.63866626,154.82,154.76,82.8]
[1746701025140,33.63866626,154.82,154.78,11.03176794]
[1746701025141,22.60689832,154.82,154.78,11.03176794]
[1746701025951,7.7595,154.88,154.82,18.64964886]
[1746701026273,22.59962733,154.87,154.83,11.03176794]
[1746701026650,33.63139527,154.87,154.83,11.03176794]
[1746701026856,11.03176794,154.85,154.82,82.8]
[1746701027366,11.03176794,154.86,154.82,82.8]
[1746701027765,11.03176794,154.85,154.82,82.8]
[1746701028067,11.03176794,154.86,154.82,82.8]
[1746701028269,6.45619471,154.89,154.85,29.6814168]
[1746701028443,6.45536117,154.91,154.87,11.03176794]
[1746701028765,11.03176794,154.9,154.87,82.8]
[1746701029070,11.03176794,154.89,154.87,82.8]
[1746701029369,11.03176794,154.88,154.87,82.8]
[1746701029573,11.03176794,154.88,154.84,37.03176794]
[1746701029869,11.03176794,154.88,154.84,26.0]
[1746701030469,6.45702847,154.87,154.84,26.0]
[1746701030979,4.81782397,154.86,154.82,44.64964886]
[1746701031143,15.84959191,154.86,154.81,11.03176794]
[1746701031561,4.81782397,154.86,154.81,11.03176794]
[1746701031754,4.81782397,154.85,154.81,11.03176794]
[1746701032671,6.45869663,154.83,154.81,11.03176794]
[1746701033378,22.60543821,154.83,154.79,132.8]
[1746701033549,22.60543821,154.83,154.79,82.8]
[1746701033750,4.81782397,154.82,154.79,11.03176794]
[1746701034444,22.60835862,154.81,154.78,26.0]
[1746701034676,22.60835862,154.81,154.77,61.03176794]
[1746701034677,4.81782397,154.8,154.77,61.03176794]
[1746701035452,4.81782397,154.79,154.77,61.03176794]
[1746701036379,6.46078304,154.78,154.77,79.6814168]
[1746701036552,11.27860701,154.78,154.77,79.6814168]
[1746701036953,11.27860701,154.78,154.76,52.83176794]
[1746701037256,4.81782397,154.77,154.76,37.03176794]
[1746701038281,17.48963038,154.85,154.79,18.64964886]
[1746701038579,33.63527162,154.85,154.81,11.03176794]
[1746701039456,11.03176794,154.84,154.79,29.6814168]
[1746701039649,6.45786244,154.85,154.81,18.64964886]
[1746701039848,6.45786244,154.85,154.81,29.6814168]
[1746701040045,17.48963038,154.85,154.81,29.6814168]
[1746701041876,6.45786244,154.85,154.81,29.6814168]
[1746701042071,6.3364,154.89,154.85,18.64964886]
[1746701042072,6.45619471,154.89,154.85,18.64964886]
[1746701042277,6.45536117,154.91,154.88,11.03176794]
[1746701042772,6.45502548,154.92,154.88,11.03176794]
[1746701042962,6.4546992,154.93,154.89,11.03176794]
[1746701043274,6.4546992,154.93,154.9,11.03176794]
[1746701043756,6.45422576,154.94,154.9,11.03176794]
[1746701043959,6.45422576,154.94,154.91,11.03176794]
[1746701045257,6.45536117,154.91,154.9,82.8]
[1746701045454,17.48712911,154.91,154.9,82.8]
[1746701045652,17.48712911,154.91,154.86,101.44964886]
[1746701045855,11.03176794,154.9,154.86,112.4814168]
[1746701047379,6.45619471,154.89,154.86,93.83176794]
[1746701047577,6.45619471,154.89,154.85,169.83176794]
[1746701048183,22.5966815,154.89,154.85,169.83176794]
[1746701049358,16.14048679,154.89,154.85,158.8]
[1746701049559,16.14048679,154.89,154.85,169.83176794]
[1746701050385,11.03176794,154.88,154.85,82.8]
[1746701051294,6.45702847,154.87,154.85,82.8]
[1746701051661,6.45702847,154.87,154.84,101.44964886]
[1746701054672,6.45702847,154.87,154.84,112.4814168]
[1746701055679,6.45661157,154.88,154.84,112.4814168]
[1746701055879,22.59814049,154.88,154.84,112.4814168]
[1746701060704,33.62990843,154.88,154.84,11.03176794]
[1746701061089,11.03176794,154.89,154.84,11.03176794]
[1746701061912,4.79860966,154.88,154.84,11.03176794]
[1746701062214,6.45702847,154.87,154.84,11.03176794]
[1746701063001,22.59959965,154.87,154.83,119.83176794]
[1746701064114,22.59959965,154.87,154.84,11.03176794]
[1746701065034,33.63136759,154.87,154.82,68.64964886]
[1746701065186,11.03176794,154.86,154.82,18.64964886]
[1746701067309,6.45786244,154.85,154.82,18.64964886]
[1746701067508,22.60251855,154.85,154.82,18.64964886]
[1746701068012,22.60251855,154.85,154.82,29.6814168]
[1746701069499,16.14465611,154.85,154.82,29.6814168]
[1746701069815,16.14465611,154.85,154.82,112.4814168]
[1746701071826,16.14465611,154.85,154.82,101.44964886]
[1746701073527,22.60251855,154.85,154.82,101.44964886]
[1746701073723,22.60251855,154.85,154.82,112.4814168]
[1746701075613,16.14465611,154.85,154.82,112.4814168]
[1746701076035,16.14465611,154.85,154.82,93.83176794]
[1746701076224,4.808942,154.84,154.82,93.83176794]
[1746701077546,16.14465611,154.85,154.82,93.83176794]
[1746701077711,22.60251855,154.85,154.82,93.83176794]
[1746701080236,4.81027793,154.84,154.82,93.83176794]
[1746701080409,4.81027793,154.84,154.83,11.03176794]
[1746701080743,4.81027793,154.84,154.82,93.83176794]
[1746701081034,22.60251855,154.85,154.82,93.83176794]
[1746701081938,16.14465611,154.85,154.82,93.83176794]
[1746701083037,4.81748489,154.84,154.82,93.83176794]
[1746701083340,6.45869663,154.83,154.82,112.4814168]
[1746701084431,11.27618152,154.83,154.82,112.4814168]
[1746701088144,6.45821073,154.85,154.82,162.4814168]
[1746701088447,6.45821073,154.85,154.84,29.6814168]
[1746701088944,16.14051052,154.89,154.85,18.64964886]
[1746701089152,6.45577792,154.9,154.88,29.6814168]
[1746701089354,6.45577792,154.9,154.88,112.4814168]
[1746701090054,17.48754586,154.9,154.88,82.8]
[1746701090222,11.03176794,154.89,154.88,82.8]
[1746701091063,17.48796265,154.89,154.88,82.8]
[1746701092637,11.03176794,154.86,154.82,94.64964886]
[1746701093233,6.45786244,154.85,154.82,94.64964886]
[1746701093546,6.45786244,154.85,154.82,177.44964886]
[1746701099165,6.45786244,154.85,154.82,188.4814168]
[1746701100543,11.29615771,154.84,154.82,188.4814168]
[1746701101366,4.83775094,154.83,154.82,162.4814168]
[1746701102363,4.83775094,154.83,154.82,151.44964886]
[1746701104050,4.83775094,154.83,154.82,162.4814168]
[1746701104282,4.83775094,154.83,154.82,201.2714168]
[1746701104640,4.83775094,154.83,154.82,207.7305306]
[1746701104851,4.83775094,154.83,154.82,201.2714168]
[1746701105254,4.83775094,154.83,154.82,207.7305306]
[1746701106279,4.83775094,154.83,154.82,227.2714168]
[1746701106472,4.83775094,154.83,154.82,233.7305306]
[1746701108767,4.83775094,154.83,154.82,369.6305306]
[1746701109456,6.45674962,154.88,154.86,18.64964886]
[1746701109771,6.45619471,154.89,154.86,101.44964886]
[1746701110472,4.83434143,154.88,154.86,101.44964886]
[1746701111676,4.83434143,154.87,154.86,112.4814168]
[1746701112349,4.83434143,154.87,154.86,101.44964886]
[1746701113267,16.82272548,154.88,154.86,101.44964886]
[1746701114172,5.79095754,154.88,154.86,101.44964886]
[1746701118171,16.82272548,154.88,154.86,82.8]
[1746701118674,5.79095754,154.88,154.86,82.8]
[1746701119382,22.59084747,154.93,154.86,93.83176794]
[1746701119686,11.03176794,154.91,154.87,18.64964886]
[1746701120183,11.03176794,154.89,154.86,82.8]
[1746701120660,22.59084747,154.93,154.86,82.8]
[1746701120987,11.03176794,154.9,154.86,82.8]
[1746701121370,6.45619471,154.89,154.86,82.8]
[1746701121574,6.45619471,154.89,154.87,18.64964886]
[1746701124491,6.45619471,154.89,154.86,82.8]
[1746701125070,6.45619471,154.89,154.87,18.64964886]
[1746701126472,4.83108607,154.88,154.87,18.64964886]
[1746701126776,4.83108607,154.88,154.87,101.44964886]
[1746701128105,4.83108607,154.88,154.87,82.8]
[1746701128400,4.83108607,154.88,154.87,101.44964886]
[1746701129209,4.83108607,154.88,154.87,162.4814168]
[1746701129386,4.83108607,154.88,154.87,168.93844527]
[1746701129701,4.83108607,154.88,154.87,174.12054311]
[1746701130397,1.5147,154.98,154.94,18.64964886]
[1746701130600,11.03176794,154.97,154.94,18.64964886]
[1746701130806,1.5147,154.98,154.92,18.64964886]
[1746701130807,11.03176794,154.96,154.92,18.64964886]
[1746701131179,11.03176794,154.95,154.92,18.64964886]
[1746701131398,11.03176794,154.93,154.91,18.64964886]
[1746701131582,11.03176794,154.93,154.91,21.85551646]
[1746701131784,17.4858792,154.94,154.91,21.85551646]
[1746701132507,11.03176794,154.93,154.91,21.85551646]
[1746701133596,6.45494448,154.92,154.91,21.85551646]
[1746701133804,6.45494448,154.92,154.91,18.64964886]
[1746701134519,17.48671242,154.92,154.89,132.8]
[1746701134686,17.48671242,154.92,154.9,18.64964886]
[1746701135307,6.45494448,154.92,154.9,18.64964886]
[1746701135504,17.48671242,154.92,154.9,21.86769555]
[1746701138711,11.03176794,154.93,154.9,21.86769555]
[1746701140406,11.03176794,154.93,154.89,82.8]
[1746701140611,11.03176794,154.92,154.89,82.8]
[1746701141012,6.45536117,154.91,154.89,82.8]
[1746701141506,6.45536117,154.91,154.9,18.64964886]
[1746701142308,6.45536117,154.91,154.89,82.8]
[1746701143512,11.28086941,154.9,154.89,101.44964886]
[1746701143893,11.28086941,154.9,154.89,104.63787152]
[1746701144611,11.28086941,154.9,154.89,21.83787152]
[1746701148421,4.82509149,154.9,154.89,21.83787152]
[1746701150429,4.82509149,154.9,154.89,32.86963946]
[1746701151826,4.82509149,154.9,154.89,82.86963946]
[1746701152430,4.82509149,154.9,154.89,89.32583417]
[1746701152805,4.82509149,154.9,154.89,308.02583417]
[1746701153537,6.45380369,154.95,154.93,18.64964886]
[1746701153831,6.45327826,154.96,154.93,18.64964886]
[1746701154432,4.82583754,154.95,154.93,18.64964886]
[1746701155126,11.27961723,154.95,154.93,18.64964886]
[1746701155435,4.82583754,154.94,154.93,18.64964886]
[1746701156619,11.2799488,154.94,154.93,101.44964886]
[1746701156937,4.82583754,154.94,154.93,101.44964886]
[1746701158540,3.82583754,154.94,154.93,101.44964886]
[1746701159630,1.93573105,154.94,154.93,254.83594465]
[1746701160109,6.4516129,155.0,154.97,18.64964886]
[1746701160310,6.4516129,155.0,154.97,101.44964886]
[1746701160813,17.48338084,155.0,154.97,101.44964886]
[1746701161013,11.03176794,154.99,154.97,82.8]
[1746701161436,11.03176794,154.98,154.97,82.8]
[1746701161738,11.03176794,154.99,154.97,82.8]
[1746701162617,17.48421341,154.98,154.97,82.8]
[1746701163019,6.45244547,154.98,154.97,82.8]
[1746701163649,17.48421341,154.98,154.97,82.8]
[1746701165947,17.48421341,154.98,154.94,127.44964886]
[1746701170230,6.45202916,154.99,154.94,127.44964886]
[1746701170432,17.4837971,154.99,154.95,18.64964886]
[1746701170858,6.45202916,154.99,154.96,11.03176794]
[1746701171158,6.45202916,154.99,154.97,29.6814168]
[1746701171730,6.45202916,154.99,154.97,112.4814168]
[1746701171930,4.79008154,154.98,154.97,112.4814168]
[1746701173068,11.24252701,154.98,154.97,82.8]
[1746701173251,22.27429495,154.98,154.97,82.8]
[1746701173453,38.40540864,154.98,154.94,26.0]
[1746701173643,11.03176794,154.97,154.94,26.0]
[1746701174041,4.79008154,154.96,154.94,26.0]
[1746701174266,6.45369474,154.95,154.94,26.0]
[1746701174843,11.24377628,154.95,154.94,26.0]
[1746701178467,11.24377628,154.95,154.94,44.64964886]
[1746701184566,11.24377628,154.95,154.91,18.64964886]
[1746701184567,22.27554422,154.95,154.91,18.64964886]
[1746701184774,11.03176794,154.94,154.91,18.64964886]
[1746701185069,4.79008154,154.93,154.91,18.64964886]
[1746701185247,4.79008154,154.93,154.91,101.44964886]
[1746701185667,6.45494448,154.92,154.91,101.44964886]
[1746701186054,11.24502602,154.92,154.91,101.44964886]
[1746701187754,4.79008154,154.92,154.91,112.4814168]
[1746701190878,4.79008154,154.92,154.91,101.44964886]
[1746701191047,4.79008154,154.92,154.91,112.4814168]
[1746701191566,4.79008154,154.92,154.91,101.44964886]
[1746701191748,11.24502602,154.92,154.91,101.44964886]
[1746701191948,4.79008154,154.92,154.91,101.44964886]
[1746701192150,4.79008154,154.92,154.91,112.4814168]
[1746701196678,4.79008154,154.92,154.91,157.72677797]
[1746701197682,4.79008154,154.92,154.91,151.2714168]
[1746701197869,4.79008154,154.92,154.91,112.4814168]
[1746701198478,4.79008154,154.92,154.91,157.72677797]
[1746701199770,6.45331148,154.96,154.94,44.64964886]
[1746701200184,6.45286184,154.97,154.94,44.64964886]
[1746701200388,6.45286184,154.97,154.94,127.44964886]
[1746701200965,4.80880031,154.96,154.94,127.44964886]
[1746701202063,15.84056825,154.96,154.94,82.8]
[1746701202263,11.26249505,154.95,154.94,82.8]
[1746701202484,22.29426299,154.95,154.94,82.8]
[1746701203384,11.26249505,154.95,154.94,82.8]
[1746701204170,22.29426299,154.95,154.94,82.8]
[1746701204763,22.29426299,154.95,154.92,44.64964886]
[1746701206263,4.80880031,154.94,154.92,44.64964886]
[1746701206871,11.2630385,154.94,154.92,44.64964886]
[1746701207179,4.80880031,154.93,154.92,44.64964886]
[1746701207366,15.84056825,154.93,154.9,18.64964886]
[1746701207571,11.03176794,154.92,154.9,44.64964886]
[1746701207772,11.03176794,154.92,154.9,18.64964886]
[1746701208080,4.80880031,154.91,154.9,44.64964886]
[1746701208797,11.26416148,154.91,154.9,44.64964886]
[1746701213984,4.80880031,154.91,154.9,44.64964886]
[1746701215867,11.26416148,154.91,154.9,44.64964886]
[1746701217289,4.80880031,154.91,154.9,44.64964886]
[1746701218702,11.26416148,154.91,154.9,44.64964886]
[1746701220481,4.80880031,154.91,154.9,44.64964886]
[1746701220681,11.26416148,154.91,154.9,44.64964886]
[1746701221279,4.80880031,154.91,154.9,44.64964886]
[1746701223396,4.80880031,154.91,154.9,51.69419804]
[1746701224801,4.80880031,154.91,154.9,44.64964886]
[1746701227600,11.26416148,154.91,154.9,44.64964886]
[1746701228190,4.80880031,154.91,154.9,51.69419804]
[1746701228601,4.80880031,154.91,154.9,44.64964886]
[1746701228988,11.26416148,154.91,154.9,44.64964886]
[1746701230208,4.80880031,154.91,154.9,44.64964886]
[1746701230580,4.80880031,154.91,154.9,51.69419804]
[1746701233913,4.80880031,154.91,154.9,44.64964886]
[1746701234416,4.80880031,154.91,154.9,25.69419804]
[1746701235995,11.26416148,154.91,154.9,18.64964886]
[1746701237407,4.80880031,154.91,154.9,18.64964886]
[1746701237603,4.80880031,154.91,154.9,25.69419804]
[1746701238208,4.80880031,154.91,154.9,18.64964886]
[1746701239310,4.80880031,154.91,154.9,25.69419804]
[1746701240896,4.80880031,154.91,154.9,18.64964886]
[1746701243700,4.80880031,154.91,154.9,114.94997596]
[1746701245416,6.45251391,154.98,154.93,18.64964886]
[1746701245717,15.10861889,154.99,154.95,18.64964886]
[1746701246087,4.83351341,154.98,154.95,18.64964886]
[1746701246505,11.87806259,154.98,154.95,18.64964886]
[1746701247125,4.83351341,154.98,154.95,25.69419804]
[1746701247549,6.45119669,155.01,154.98,18.64964886]
[1746701247832,13.49574587,155.01,154.98,18.64964886]
[1746701248410,13.49574587,155.01,154.97,82.8]
[1746701248411,4.83115522,155.0,154.97,82.8]
[1746701248613,7.04454918,154.99,154.97,82.8]
[1746701249309,4.83115522,154.98,154.97,82.8]
[1746701249711,11.28360069,154.98,154.97,82.8]
[1746701252637,11.28360069,154.98,154.95,101.44964886]
[1746701254514,4.83115522,154.97,154.95,101.44964886]
[1746701255526,4.83115522,154.96,154.95,101.44964886]
[1746701255710,4.83115522,154.96,154.95,112.44899549]
[1746701257244,11.28443348,154.96,154.94,26.0]
[1746701257446,11.28443348,154.96,154.93,18.64964886]
[1746701257618,11.28443348,154.96,154.93,44.64964886]
[1746701258542,6.45411126,154.94,154.93,44.64964886]
[1746701259336,11.28492177,154.95,154.93,44.64964886]
[1746701259540,4.83115522,154.94,154.93,44.64964886]
[1746701259935,4.83115522,154.94,154.93,55.64899549]
[1746701261719,4.83115522,154.94,154.93,138.44899549]
[1746701266438,6.4528992,154.97,154.93,138.44899549]
[1746701266619,6.4528992,154.97,154.96,10.99934663]
[1746701267445,6.45202916,154.99,154.96,29.64899549]
[1746701267631,4.82159414,154.98,154.97,10.99934663]
[1746701268146,4.82159414,154.98,154.96,29.64899549]
[1746701268822,4.82159414,154.97,154.96,29.64899549]
[1746701273023,11.27445598,154.97,154.96,18.64964886]
[1746701273726,11.27445598,154.97,154.95,18.64964886]
[1746701274622,4.82159414,154.96,154.94,82.8]
[1746701275233,4.82159414,154.95,154.94,101.44964886]
[1746701275750,11.27528888,154.95,154.94,101.44964886]
[1746701279550,11.27528888,154.95,154.94,18.64964886]
[1746701280350,11.27528888,154.95,154.94,29.65092193]
[1746701282159,4.82159414,154.95,154.94,29.65092193]
[1746701283734,4.82159414,154.95,154.94,124.89503319]
[1746701283965,6.45078054,155.02,154.96,50.0]
[1746701284264,6.45078054,155.02,154.98,11.00127307]
[1746701284451,6.45078054,155.02,154.99,11.00127307]
[1746701284635,6.45078054,155.02,154.96,132.8]
[1746701284832,4.82507561,155.01,154.98,11.00127307]
[1746701285143,6.4516129,155.0,154.98,11.00127307]
[1746701286164,4.82507561,154.99,154.98,29.65092193]
[1746701286869,11.27710477,154.99,154.98,18.64964886]
[1746701287264,11.27710477,154.99,154.97,11.00127307]
[1746701287673,11.27710477,154.99,154.96,112.45092193]
[1746701288248,4.82507561,154.98,154.96,112.45092193]
[1746701288448,4.82507561,154.98,154.96,29.65092193]
[1746701289456,4.82507561,154.97,154.96,29.65092193]
[1746701289965,4.82507561,154.97,154.93,82.8]
[1746701290149,6.45647561,154.97,154.93,82.8]
[1746701290466,17.45774868,154.97,154.93,82.8]
[1746701290667,11.00127307,154.96,154.93,82.8]
[1746701290863,15.82634868,154.96,154.93,82.8]
[1746701291461,6.45369474,154.95,154.93,82.8]
[1746701291775,11.27877035,154.95,154.93,82.8]
[1746701292144,11.00127307,154.94,154.86,65.66]
[1746701292452,11.00127307,154.91,154.86,159.46127307]
[1746701292655,11.00127307,154.91,154.87,18.64964886]
[1746701292853,11.00127307,154.9,154.87,18.64964886]
[1746701293350,4.82507561,154.89,154.87,18.64964886]
[1746701293552,6.45661157,154.88,154.87,18.64964886]
[1746701293754,4.82507561,154.89,154.87,18.64964886]
[1746701294153,4.82507561,154.88,154.87,18.64964886]
[1746701297463,19.03297033,154.91,154.87,18.64964886]
[1746701297772,11.00127307,154.9,154.87,18.64964886]
[1746701297969,8.03169726,154.91,154.87,29.65092193]
[1746701298465,4.82205118,154.9,154.87,29.65092193]
[1746701298656,4.82205118,154.9,154.88,11.00127307]
[1746701299352,4.82205118,154.89,154.88,29.65092193]
[1746701299748,4.82205118,154.89,154.88,18.64964886]
[1746701302477,11.27824589,154.89,154.87,82.8]
[1746701303078,6.45577792,154.9,154.87,82.8]
[1746701303576,6.45577792,154.9,154.87,18.64964886]
[1746701305682,4.81567386,154.89,154.87,18.64964886]
[1746701306667,6.45577792,154.9,154.87,18.64964886]
[1746701307373,6.45577792,154.9,154.86,82.8]
[1746701307374,11.00127307,154.89,154.86,82.8]
[1746701307558,15.81582783,154.88,154.86,82.8]
[1746701307760,4.81455476,154.88,154.86,82.8]
[1746701308677,4.81455476,154.88,154.84,55.65092193]
[1746701308863,11.27158323,154.87,154.84,55.65092193]
[1746701310184,6.45702847,154.87,154.84,55.65092193]
[1746701311887,6.45661157,154.88,154.84,55.65092193]
[1746701313579,6.45661157,154.88,154.85,11.00127307]
[1746701313791,6.45661157,154.88,154.84,44.64964886]
[1746701313993,6.45661157,154.88,154.84,55.65092193]
[1746701315072,4.80799887,154.87,154.84,55.65092193]
[1746701315763,15.80927194,154.87,154.83,18.64964886]
[1746701316169,6.45744543,154.86,154.83,18.64964886]
[1746701316371,6.45744543,154.86,154.83,29.65092193]
[1746701318608,6.45702847,154.87,154.83,29.65092193]
[1746701323303,33.59941356,154.88,154.83,29.65092193]
[1746701324696,6.45744543,154.86,154.83,18.64964886]
[1746701327012,33.60233208,154.86,154.82,82.8]
[1746701327185,11.00127307,154.85,154.82,82.8]
[1746701327700,11.00127307,154.85,154.81,55.65092193]
[1746701327875,6.45827951,154.84,154.81,55.65092193]
[1746701328301,6.45827951,154.84,154.79,15.8]
[1746701328302,11.00127307,154.83,154.79,82.8]
[1746701328504,11.00127307,154.83,154.79,18.64964886]
[1746701329283,17.46038687,154.82,154.78,93.80127307]
[1746701329692,17.46038687,154.82,154.78,82.8]
[1746701329996,17.46038687,154.82,154.78,93.80127307]
[1746701330508,6.4591138,154.82,154.78,93.80127307]
[1746701331398,4.80845561,154.81,154.78,93.80127307]
[1746701331804,6.45994832,154.8,154.78,93.80127307]
[1746701331991,6.45994832,154.8,154.78,11.00127307]
[1746701332713,6.45968418,154.81,154.78,11.00127307]
[1746701333407,6.45968418,154.81,154.79,11.00127307]
[1746701334315,6.4591138,154.82,154.79,11.00127307]
[1746701335000,4.8141667,154.81,154.79,11.00127307]
[1746701335615,4.8141667,154.8,154.79,11.00127307]
[1746701336321,11.00127307,154.84,154.79,11.00127307]
[1746701336491,1.6396,154.85,154.81,11.00127307]
[1746701336695,12.57377307,154.89,154.84,11.00127307]
[1746701337517,4.81562187,154.88,154.84,11.00127307]
[1746701337705,22.27350651,154.88,154.84,11.00127307]
[1746701337900,22.27350651,154.88,154.83,11.00127307]
[1746701338108,11.00127307,154.87,154.83,11.00127307]
[1746701338417,15.81689494,154.86,154.82,82.8]
[1746701338622,11.00127307,154.85,154.82,82.8]
[1746701338822,11.00127307,154.85,154.8,29.65092193]
[1746701339312,4.81562187,154.84,154.8,29.65092193]
[1746701339829,4.81562187,154.84,154.83,29.65092193]
[1746701341426,4.81562187,154.84,154.83,112.45092193]
[1746701341606,4.81562187,154.84,154.83,168.90961856]
[1746701342222,6.45619471,154.89,154.83,168.90961856]
[1746701342398,6.45619471,154.89,154.86,11.00127307]
[1746701343033,6.45619471,154.89,154.87,11.00127307]
[1746701343317,4.81562187,154.88,154.87,11.00127307]
[1746701343912,11.27223344,154.88,154.86,11.00127307]
[1746701344317,4.81562187,154.87,154.86,29.65092193]
[1746701354612,4.81562187,154.87,154.86,112.45092193]
[1746701361045,4.81562187,154.87,154.86,101.44964886]
[1746701361241,4.81562187,154.87,154.86,112.45092193]
[1746701362534,4.81562187,154.87,154.86,101.44964886]
[1746701362730,4.81562187,154.87,154.86,112.45092193]
[1746701368930,33.59457319,154.92,154.86,112.45092193]
[1746701369149,33.59457319,154.92,154.88,11.00127307]
[1746701369758,4.81084573,154.91,154.88,11.00127307]
[1746701369960,6.45577792,154.9,154.88,11.00127307]
[1746701370432,4.81084573,154.89,154.88,29.65092193]
[1746701371954,11.26704044,154.89,154.88,29.65092193]
[1746701372868,11.26704044,154.89,154.86,82.8]
[1746701373150,11.26704044,154.89,154.87,11.00127307]
[1746701373746,4.81084573,154.88,154.87,11.00127307]
[1746701373959,11.2674573,154.88,154.87,29.65092193]
[1746701374164,4.81084573,154.88,154.87,29.65092193]
[1746701374666,4.81084573,154.88,154.87,79.65092193]
[1746701375556,4.81084573,154.88,154.87,162.45092193]
[1746701383765,4.81084573,154.88,154.87,158.49549533]
[1746701388385,4.81084573,154.88,154.87,184.49549533]
[1746701388544,6.45119669,155.01,154.93,18.64964886]
[1746701388748,6.45119669,155.01,154.96,26.0]
[1746701389050,7.99621647,155.06,155.0,26.0]
[1746701389555,7.99621647,155.06,155.01,18.64964886]
[1746701389772,7.99621647,155.06,155.01,21.83009181]
[1746701390158,7.99621647,155.06,154.99,18.64964886]
[1746701390690,7.99621647,155.06,155.0,50.0]
[1746701391478,15.04206294,155.06,155.0,50.0]
[1746701391656,7.99621647,155.06,155.0,50.0]
[1746701391855,7.99621647,155.06,155.01,18.64964886]
[1746701392158,6.4499484,155.04,154.99,18.64964886]
[1746701392457,6.4499484,155.04,154.98,76.0]
[1746701392682,17.44248104,155.04,154.99,29.6421815]
[1746701392878,6.4499484,155.04,154.99,18.64964886]
[1746701393373,6.4499484,155.04,154.99,29.6421815]
[1746701393549,17.44248104,155.04,154.99,29.6421815]
[1746701393748,6.4499484,155.04,154.99,29.6421815]
[1746701393980,6.4499484,155.04,154.99,18.64964886]
[1746701394185,6.4499484,155.04,154.99,21.8188278]
[1746701394362,6.4499484,155.04,155.01,10.99253264]
[1746701394561,17.44248104,155.04,154.99,21.8188278]
[1746701394763,10.99253264,155.03,154.99,3.16917894]
[1746701395087,10.99253264,155.03,154.98,36.99253264]
[1746701395258,6.4499484,155.04,154.98,26.0]
[1746701395461,22.57336342,155.05,154.98,26.0]
[1746701395859,10.99253264,155.03,154.98,26.0]
[1746701396074,22.57336342,155.05,154.99,29.6421815]
[1746701396255,10.99253264,155.04,154.99,32.85254981]
[1746701396457,22.57336342,155.05,154.99,32.85254981]
[1746701396671,10.99253264,155.04,154.99,18.64964886]
[1746701396865,22.57336342,155.05,154.99,29.6421815]
[1746701397073,10.99253264,155.04,154.99,29.6421815]
[1746701397281,10.99253264,155.03,154.99,18.64964886]
[1746701397679,10.99253264,155.02,154.98,26.0]
[1746701398015,22.57336342,155.05,154.94,18.64964886]
[1746701398184,6.45286184,154.97,154.94,18.64964886]
[1746701398775,6.45286184,154.97,154.94,29.6421815]
[1746701398974,17.444976,154.99,154.94,29.6421815]
[1746701399391,17.444976,154.99,154.94,18.64964886]
[1746701399594,17.444976,154.99,154.94,29.6421815]
[1746701399898,17.444976,154.99,154.94,18.64964886]
[1746701400095,8.2655,155.04,154.94,18.64964886]
[1746701400283,10.99253264,154.99,154.94,29.6421815]
[1746701400897,8.2655,155.04,154.94,18.64964886]
[1746701401108,4.793894,154.98,154.94,29.6421815]
[1746701401284,10.99253264,154.97,154.93,26.0]
[1746701401599,10.99253264,154.94,154.87,50.0]
[1746701401899,7.6569,154.97,154.87,10.99253264]
[1746701401900,10.99253264,154.92,154.87,10.99253264]
[1746701402080,6.45536117,154.91,154.88,18.64964886]
[1746701402580,6.45536117,154.91,154.88,29.6421815]
[1746701403009,6.45536117,154.91,154.86,18.64964886]
[1746701403185,6.45536117,154.91,154.88,10.99253264]
[1746701403583,10.99253264,154.93,154.88,10.99253264]
[1746701404100,11.24577715,154.92,154.89,10.99253264]
[1746701405102,10.99253264,154.93,154.9,10.99253264]
[1746701405103,6.45459015,154.93,154.9,10.99253264]
[1746701406423,6.45459015,154.93,154.89,10.99253264]
[1746701406590,6.45459015,154.93,154.87,50.0]
[1746701406785,6.45459015,154.93,154.89,10.99253264]
[1746701406985,6.45459015,154.93,154.87,50.0]
[1746701407485,6.45459015,154.93,154.89,10.99253264]
[1746701407799,6.45459015,154.93,154.9,10.99253264]
[1746701408300,7.6569,154.97,154.93,18.64964886]
[1746701408495,7.97770616,154.97,154.95,10.99253264]
[1746701408694,18.9702388,154.97,154.92,10.99253264]